[Event "Titled Tuesday Blitz August 17 2021"]
[White "Kamsky, Gata"]
[Black "Zhigalko, Sergei"]
[WhiteFideId "2000024"]
[BlackFideId "13502956"]
[WhiteElo "2644"]
[BlackElo "2662"]
[Result "0-1"]
[Round "10"]
[TimeControl "180+1"]
[Date "2021.08.17"]
[WhiteClock "0:00:01"]
[BlackClock "0:00:03"]

1. d4 {[%clk 0:03:00]}  Nf6 {[%clk 0:03:00]} 2. Nf3 {[%clk 0:03:00]}  e6 {[%clk 0:03:00]} 3. Bf4 {[%clk 0:03:00]}  b6 {[%clk 0:03:00]} 4. e3 {[%clk 0:03:00]}  Bb7 {[%clk 0:03:00]} 5. Nbd2 {[%clk 0:02:59]}  Nh5 {[%clk 0:03:01]} 6. Bg5 {[%clk 0:02:53]}  Be7 {[%clk 0:03:01]} 7. Bxe7 {[%clk 0:02:49]}  Qxe7 {[%clk 0:03:02]} 8. a4 {[%clk 0:02:46]}  a6 {[%clk 0:03:01]} 9. Bd3 {[%clk 0:02:39]}  f5 {[%clk 0:02:57]} 10. O-O {[%clk 0:02:32]}  O-O {[%clk 0:02:57]} 11. Re1 {[%clk 0:02:31]}  Nc6 {[%clk 0:02:49]} 12. c3 {[%clk 0:02:16]}  Qf6 {[%clk 0:02:38]} 13. g3 {[%clk 0:02:09]}  Qh6 {[%clk 0:02:04]} 14. Bf1 {[%clk 0:01:57]}  Nf6 {[%clk 0:02:02]} 15. Bg2 {[%clk 0:01:58]}  Ne7 {[%clk 0:01:58]} 16. Ne5 {[%clk 0:01:38]}  Bxg2 {[%clk 0:01:57]} 17. Kxg2 {[%clk 0:01:38]}  d6 {[%clk 0:01:50]} 18. Nd3 {[%clk 0:01:38]}  Kh8 {[%clk 0:01:41]} 19. h4 {[%clk 0:01:32]}  Ng4 {[%clk 0:01:32]} 20. Qe2 {[%clk 0:01:17]}  Rae8 {[%clk 0:01:08]} 21. e4 {[%clk 0:01:05]}  Ng8 {[%clk 0:00:27]} 22. e5 {[%clk 0:00:53]}  dxe5 {[%clk 0:00:27]} 23. dxe5 {[%clk 0:00:52]}  Rd8 {[%clk 0:00:25]} 24. Nf3 {[%clk 0:00:49]}  Qh5 {[%clk 0:00:13]} 25. Nf4 {[%clk 0:00:48]}  Qe8 {[%clk 0:00:13]} 26. Ng5 {[%clk 0:00:45]}  Qc6+ {[%clk 0:00:04]} 27. f3 {[%clk 0:00:38]}  Rde8 {[%clk 0:00:04]} 28. Ngxe6 {[%clk 0:00:31]}  Rxe6 {[%clk 0:00:02]} 29. Nxe6 {[%clk 0:00:31]}  Qxe6 {[%clk 0:00:01]} 30. fxg4 {[%clk 0:00:31]}  fxg4 {[%clk 0:00:02]} 31. Qe4 {[%clk 0:00:27]}  Ne7 {[%clk 0:00:02]} 32. Rf1 {[%clk 0:00:23]}  Nf5 {[%clk 0:00:02]} 33. Rf2 {[%clk 0:00:19]}  g6 {[%clk 0:00:02]} 34. Rd1 {[%clk 0:00:18]}  a5 {[%clk 0:00:02]} 35. Kh2 {[%clk 0:00:17]}  Re8 {[%clk 0:00:02]} 36. Qxg4 {[%clk 0:00:16]}  Qxe5 {[%clk 0:00:02]} 37. Qf4 {[%clk 0:00:16]}  Qe7 {[%clk 0:00:01]} 38. Rdd2 {[%clk 0:00:12]}  h5 {[%clk 0:00:02]} 39. b4 {[%clk 0:00:07]}  axb4 {[%clk 0:00:02]} 40. cxb4 {[%clk 0:00:07]}  Kh7 {[%clk 0:00:02]} 41. Rc2 {[%clk 0:00:07]}  c5 {[%clk 0:00:01]} 42. bxc5 {[%clk 0:00:07]}  bxc5 {[%clk 0:00:02]} 43. a5 {[%clk 0:00:06]}  Ra8 {[%clk 0:00:02]} 44. Qa4 {[%clk 0:00:04]}  Ne3 {[%clk 0:00:02]} 45. Qb3 {[%clk 0:00:02]}  Ng4+ {[%clk 0:00:02]} 46. Kg2 {[%clk 0:00:01]}  Ne3+ {[%clk 0:00:02]} 47. Kh2 {[%clk 0:00:01]}  Nxc2 {[%clk 0:00:03]} 0-1


[Site "https://www.chess.com"]

[Event "Titled Tuesday Blitz August 17 2021"]
[White "Kanyamarala, Trisha"]
[Black "Avramidou, Anastasia"]
[WhiteFideId "45004722"]
[BlackFideId "4239873"]
[WhiteElo "2074"]
[BlackElo "2183"]
[Result "1-0"]
[Round "10"]
[TimeControl "180+1"]
[Date "2021.08.17"]
[WhiteClock "0:00:02"]
[BlackClock "0:00:03"]

1. d4 {[%clk 0:03:00]}  Nf6 {[%clk 0:02:53]} 2. c4 {[%clk 0:03:00]}  g6 {[%clk 0:02:50]} 3. Nc3 {[%clk 0:03:00]}  d5 {[%clk 0:02:50]} 4. cxd5 {[%clk 0:02:59]}  Nxd5 {[%clk 0:02:51]} 5. e4 {[%clk 0:02:58]}  Nxc3 {[%clk 0:02:51]} 6. bxc3 {[%clk 0:02:59]}  Bg7 {[%clk 0:02:52]} 7. Be3 {[%clk 0:02:59]}  O-O {[%clk 0:02:53]} 8. Nf3 {[%clk 0:02:58]}  c5 {[%clk 0:02:53]} 9. Rb1 {[%clk 0:02:55]}  Nc6 {[%clk 0:02:51]} 10. Be2 {[%clk 0:02:55]}  Qc7 {[%clk 0:02:50]} 11. O-O {[%clk 0:02:53]}  b6 {[%clk 0:02:50]} 12. dxc5 {[%clk 0:02:50]}  Rb8 {[%clk 0:02:46]} 13. cxb6 {[%clk 0:02:48]}  axb6 {[%clk 0:02:46]} 14. c4 {[%clk 0:02:46]}  Rd8 {[%clk 0:02:45]} 15. Qc2 {[%clk 0:02:42]}  Bg4 {[%clk 0:02:44]} 16. c5 {[%clk 0:02:38]}  Ne5 {[%clk 0:02:29]} 17. Nxe5 {[%clk 0:02:30]}  Bxe2 {[%clk 0:02:27]} 18. Qxe2 {[%clk 0:02:27]}  Qxe5 {[%clk 0:02:27]} 19. cxb6 {[%clk 0:02:22]}  Qxe4 {[%clk 0:02:28]} 20. Qb5 {[%clk 0:02:07]}  h5 {[%clk 0:02:09]} 21. a4 {[%clk 0:02:05]}  h4 {[%clk 0:02:03]} 22. h3 {[%clk 0:02:01]}  f5 {[%clk 0:01:46]} 23. Bc5 {[%clk 0:01:43]}  Be5 {[%clk 0:01:32]} 24. Rb4 {[%clk 0:01:30]}  Qb7 {[%clk 0:01:15]} 25. a5 {[%clk 0:01:27]}  Ra8 {[%clk 0:01:08]} 26. Qc4+ {[%clk 0:01:12]}  Kg7 {[%clk 0:01:05]} 27. Rb5 {[%clk 0:00:53]}  Bf6 {[%clk 0:00:53]} 28. Re1 {[%clk 0:00:46]}  Rdc8 {[%clk 0:00:49]} 29. Qe6 {[%clk 0:00:37]}  Rc6 {[%clk 0:00:41]} 30. Qd5 {[%clk 0:00:30]}  Rac8 {[%clk 0:00:41]} 31. Reb1 {[%clk 0:00:13]}  e6 {[%clk 0:00:20]} 32. Qa2 {[%clk 0:00:13]}  Rxc5 {[%clk 0:00:19]} 33. Rxc5 {[%clk 0:00:13]}  Rxc5 {[%clk 0:00:19]} 34. a6 {[%clk 0:00:13]}  Qc6 {[%clk 0:00:19]} 35. a7 {[%clk 0:00:08]}  Rc1+ {[%clk 0:00:19]} 36. Rxc1 {[%clk 0:00:07]}  Qxc1+ {[%clk 0:00:19]} 37. Kh2 {[%clk 0:00:08]}  Be5+ {[%clk 0:00:20]} 38. g3 {[%clk 0:00:08]}  Qe1 {[%clk 0:00:14]} 39. a8=Q {[%clk 0:00:03]}  hxg3+ {[%clk 0:00:13]} 40. Kg2 {[%clk 0:00:03]}  gxf2 {[%clk 0:00:12]} 41. Qxf2 {[%clk 0:00:03]}  Qb1 {[%clk 0:00:12]} 42. Qaf3 {[%clk 0:00:02]}  Bb8 {[%clk 0:00:08]} 43. Q3e3 {[%clk 0:00:02]}  e5 {[%clk 0:00:08]} 44. Qc3 {[%clk 0:00:02]}  Kh6 {[%clk 0:00:04]} 45. Qcc2 {[%clk 0:00:02]}  Qb5 {[%clk 0:00:03]} 46. Qcd2+ {[%clk 0:00:02]}  f4 {[%clk 0:00:03]} 47. Qf3 {[%clk 0:00:02]}  Qb1 {[%clk 0:00:02]} 48. Qde2 {[%clk 0:00:02]}  Qxb6 {[%clk 0:00:02]} 49. Qff1 {[%clk 0:00:02]}  Qf6 {[%clk 0:00:01]} 50. Qg4 {[%clk 0:00:02]}  Bd6 {[%clk 0:00:01]} 51. h4 {[%clk 0:00:03]}  Kg7 {[%clk 0:00:02]} 52. Qg5 {[%clk 0:00:03]}  Qe6 {[%clk 0:00:02]} 53. Qd3 {[%clk 0:00:03]}  e4 {[%clk 0:00:02]} 54. Qd4+ {[%clk 0:00:03]}  Kf7 {[%clk 0:00:02]} 55. h5 {[%clk 0:00:03]}  f3+ {[%clk 0:00:02]} 56. Kf1 {[%clk 0:00:02]}  e3 {[%clk 0:00:02]} 57. hxg6+ {[%clk 0:00:02]}  Ke8 {[%clk 0:00:03]} 58. Qgxe3 {[%clk 0:00:02]} 1-0


[Site "https://www.chess.com"]

[Event "Titled Tuesday Blitz August 17 2021"]
[White "Karttunen, Mika"]
[Black "Volkov, Maksim"]
[WhiteFideId "502081"]
[BlackFideId "54123070"]
[WhiteElo "2343"]
[BlackElo "2113"]
[Result "1-0"]
[Round "10"]
[TimeControl "180+1"]
[Date "2021.08.17"]
[WhiteClock "0:00:03"]
[BlackClock "0:00:21"]

1. d4 {[%clk 0:03:00]}  d5 {[%clk 0:02:59]} 2. c4 {[%clk 0:03:00]}  e6 {[%clk 0:02:59]} 3. Nc3 {[%clk 0:03:00]}  c6 {[%clk 0:02:59]} 4. Nf3 {[%clk 0:02:59]}  dxc4 {[%clk 0:02:58]} 5. a4 {[%clk 0:02:50]}  Bb4 {[%clk 0:02:56]} 6. e4 {[%clk 0:02:47]}  b5 {[%clk 0:02:56]} 7. Bd2 {[%clk 0:02:37]}  Nf6 {[%clk 0:02:50]} 8. e5 {[%clk 0:02:33]}  Bxc3 {[%clk 0:02:47]} 9. bxc3 {[%clk 0:02:33]}  Nd5 {[%clk 0:02:47]} 10. Qb1 {[%clk 0:02:27]}  a6 {[%clk 0:02:42]} 11. Be2 {[%clk 0:02:24]}  h6 {[%clk 0:02:41]} 12. h4 {[%clk 0:02:21]}  Nd7 {[%clk 0:02:40]} 13. h5 {[%clk 0:02:15]}  N7b6 {[%clk 0:02:39]} 14. Qb2 {[%clk 0:02:03]}  Nxa4 {[%clk 0:02:37]} 15. Qc2 {[%clk 0:01:46]}  Nab6 {[%clk 0:02:31]} 16. Rh4 {[%clk 0:01:45]}  a5 {[%clk 0:02:23]} 17. Rg4 {[%clk 0:01:45]}  Kf8 {[%clk 0:02:23]} 18. Kf1 {[%clk 0:01:15]}  a4 {[%clk 0:02:18]} 19. Bc1 {[%clk 0:01:14]}  b4 {[%clk 0:02:10]} 20. cxb4 {[%clk 0:01:11]}  Ba6 {[%clk 0:01:57]} 21. Ba3 {[%clk 0:01:11]}  Bb5 {[%clk 0:01:57]} 22. Nd2 {[%clk 0:01:08]}  f5 {[%clk 0:01:46]} 23. exf6 {[%clk 0:00:56]}  Nxf6 {[%clk 0:01:46]} 24. Rh4 {[%clk 0:00:47]}  Qd5 {[%clk 0:01:33]} 25. Rc1 {[%clk 0:00:46]}  Qg5 {[%clk 0:01:29]} 26. Nf3 {[%clk 0:00:43]}  Qd5 {[%clk 0:01:21]} 27. Ne5 {[%clk 0:00:41]}  Rg8 {[%clk 0:01:12]} 28. Kg1 {[%clk 0:00:40]}  Rd8 {[%clk 0:01:10]} 29. Nxc4 {[%clk 0:00:32]}  Qg5 {[%clk 0:01:02]} 30. g3 {[%clk 0:00:32]}  Nbd5 {[%clk 0:00:59]} 31. Re1 {[%clk 0:00:24]}  Ke7 {[%clk 0:00:52]} 32. Ne5 {[%clk 0:00:25]}  Rc8 {[%clk 0:00:44]} 33. Bf3 {[%clk 0:00:22]}  Nd7 {[%clk 0:00:43]} 34. Ng6+ {[%clk 0:00:22]}  Kd6 {[%clk 0:00:43]} 35. Bc1 {[%clk 0:00:20]}  Qf6 {[%clk 0:00:42]} 36. Bf4+ {[%clk 0:00:18]}  Nxf4 {[%clk 0:00:42]} 37. Rxf4 {[%clk 0:00:18]}  Qg5 {[%clk 0:00:40]} 38. Qa2 {[%clk 0:00:15]}  Rge8 {[%clk 0:00:39]} 39. Rfe4 {[%clk 0:00:14]}  Qd5 {[%clk 0:00:37]} 40. Qd2 {[%clk 0:00:09]}  Nf6 {[%clk 0:00:34]} 41. Qf4+ {[%clk 0:00:09]}  Kd7 {[%clk 0:00:34]} 42. Re5 {[%clk 0:00:08]}  Qd6 {[%clk 0:00:33]} 43. Qe3 {[%clk 0:00:06]}  Ra8 {[%clk 0:00:29]} 44. Nf4 {[%clk 0:00:05]}  Bc4 {[%clk 0:00:28]} 45. Qc3 {[%clk 0:00:05]}  Bd5 {[%clk 0:00:27]} 46. Bxd5 {[%clk 0:00:04]}  cxd5 {[%clk 0:00:25]} 47. Rxe6 {[%clk 0:00:04]}  Rxe6 {[%clk 0:00:25]} 48. Rxe6 {[%clk 0:00:03]}  Qc7 {[%clk 0:00:24]} 49. Qe3 {[%clk 0:00:03]}  Qc2 {[%clk 0:00:22]} 50. Re7+ {[%clk 0:00:02]}  Kd8 {[%clk 0:00:22]} 51. Qe6 {[%clk 0:00:03]}  Qd1+ {[%clk 0:00:20]} 52. Kh2 {[%clk 0:00:03]}  Qg4 {[%clk 0:00:21]} 53. Qd6+ {[%clk 0:00:03]}  Kc8 {[%clk 0:00:21]} 54. Qc7# {[%clk 0:00:03]} 1-0


[Site "https://www.chess.com"]

[Event "Titled Tuesday Blitz August 17 2021"]
[White "Kavyev, Ruslan"]
[Black "Bodnar, Nikolay"]
[WhiteFideId "34110981"]
[BlackFideId "14106469"]
[WhiteElo "2172"]
[BlackElo "2296"]
[Result "0-1"]
[Round "10"]
[TimeControl "180+1"]
[Date "2021.08.17"]
[WhiteClock "0:00:02"]
[BlackClock "0:01:27"]

1. d4 {[%clk 0:03:00]}  Nf6 {[%clk 0:02:59]} 2. c4 {[%clk 0:03:01]}  g6 {[%clk 0:03:00]} 3. Nc3 {[%clk 0:03:01]}  d5 {[%clk 0:03:00]} 4. Nf3 {[%clk 0:03:01]}  Bg7 {[%clk 0:03:00]} 5. h4 {[%clk 0:03:02]}  O-O {[%clk 0:02:42]} 6. h5 {[%clk 0:03:00]}  dxc4 {[%clk 0:02:39]} 7. hxg6 {[%clk 0:02:56]}  hxg6 {[%clk 0:02:37]} 8. e4 {[%clk 0:02:55]}  c5 {[%clk 0:02:36]} 9. d5 {[%clk 0:02:54]}  b5 {[%clk 0:02:36]} 10. Bh6 {[%clk 0:02:03]}  Bxh6 {[%clk 0:02:29]} 11. Rxh6 {[%clk 0:02:04]}  b4 {[%clk 0:02:30]} 12. Ne2 {[%clk 0:01:12]}  Nxe4 {[%clk 0:02:28]} 13. Qc2 {[%clk 0:00:50]}  Nd6 {[%clk 0:02:26]} 14. Ng3 {[%clk 0:00:26]}  Nf5 {[%clk 0:02:22]} 15. Nxf5 {[%clk 0:00:23]}  Bxf5 {[%clk 0:02:23]} 16. Qxc4 {[%clk 0:00:23]}  e6 {[%clk 0:02:17]} 17. O-O-O {[%clk 0:00:22]}  exd5 {[%clk 0:02:13]} 18. Rxd5 {[%clk 0:00:23]}  Qf6 {[%clk 0:02:13]} 19. Qf4 {[%clk 0:00:17]}  Qg7 {[%clk 0:01:49]} 20. g4 {[%clk 0:00:05]}  Be6 {[%clk 0:01:49]} 21. Rd1 {[%clk 0:00:03]}  Nc6 {[%clk 0:01:45]} 22. g5 {[%clk 0:00:03]}  Rad8 {[%clk 0:01:43]} 23. Re1 {[%clk 0:00:03]}  Bxa2 {[%clk 0:01:39]} 24. Bb5 {[%clk 0:00:03]}  Nd4 {[%clk 0:01:38]} 25. Reh1 {[%clk 0:00:03]}  Nxf3 {[%clk 0:01:29]} 26. Qxf3 {[%clk 0:00:02]}  Bd5 {[%clk 0:01:29]} 27. Qf6 {[%clk 0:00:01]}  Bxh1 {[%clk 0:01:27]} 28. Rxh1 {[%clk 0:00:02]}  Qxf6 {[%clk 0:01:27]} 29. gxf6 {[%clk 0:00:03]}  Rd6 {[%clk 0:01:28]} 30. Bc4 {[%clk 0:00:03]}  Rxf6 {[%clk 0:01:28]} 31. Re1 {[%clk 0:00:03]}  Kg7 {[%clk 0:01:28]} 32. Re7 {[%clk 0:00:04]}  Rd8 {[%clk 0:01:27]} 33. Rxa7 {[%clk 0:00:05]}  Rxf2 {[%clk 0:01:27]} 34. b3 {[%clk 0:00:05]}  Rh8 {[%clk 0:01:28]} 35. Bd5 {[%clk 0:00:03]}  Rh5 {[%clk 0:01:27]} 36. Be4 {[%clk 0:00:02]}  Rg5 {[%clk 0:01:27]} 0-1


[Site "https://www.chess.com"]

[Event "Titled Tuesday Blitz August 17 2021"]
[White "Khanin, Semen"]
[Black "Holt, Conrad"]
[WhiteFideId "4111990"]
[BlackFideId "2034387"]
[WhiteElo "2521"]
[BlackElo "2586"]
[Result "0-1"]
[Round "10"]
[TimeControl "180+1"]
[Date "2021.08.17"]
[WhiteClock "0:00:57"]
[BlackClock "0:01:13"]

1. e4 {[%clk 0:03:00]}  e6 {[%clk 0:03:00]} 2. d4 {[%clk 0:03:00]}  d5 {[%clk 0:03:00]} 3. e5 {[%clk 0:03:01]}  c5 {[%clk 0:03:00]} 4. c3 {[%clk 0:03:01]}  Bd7 {[%clk 0:02:59]} 5. Nf3 {[%clk 0:03:00]}  Qb6 {[%clk 0:02:59]} 6. Bd3 {[%clk 0:03:01]}  Bb5 {[%clk 0:02:58]} 7. dxc5 {[%clk 0:03:00]}  Bxc5 {[%clk 0:02:57]} 8. Bxb5+ {[%clk 0:03:00]}  Qxb5 {[%clk 0:02:57]} 9. b4 {[%clk 0:03:00]}  Bb6 {[%clk 0:02:53]} 10. Na3 {[%clk 0:03:00]}  Qd7 {[%clk 0:02:52]} 11. c4 {[%clk 0:03:00]}  a5 {[%clk 0:02:47]} 12. cxd5 {[%clk 0:02:51]}  exd5 {[%clk 0:02:45]} 13. b5 {[%clk 0:02:51]}  Ne7 {[%clk 0:02:43]} 14. Nc2 {[%clk 0:02:50]}  Qxb5 {[%clk 0:02:39]} 15. Ncd4 {[%clk 0:02:46]}  Bxd4 {[%clk 0:02:36]} 16. Nxd4 {[%clk 0:02:35]}  Qb4+ {[%clk 0:02:36]} 17. Qd2 {[%clk 0:02:29]}  Nbc6 {[%clk 0:02:34]} 18. Qxb4 {[%clk 0:02:25]}  axb4 {[%clk 0:02:34]} 19. Nb5 {[%clk 0:02:02]}  O-O {[%clk 0:02:29]} 20. Bb2 {[%clk 0:02:02]}  Ra5 {[%clk 0:02:23]} 21. Nd6 {[%clk 0:01:58]}  Rfa8 {[%clk 0:02:20]} 22. Nxb7 {[%clk 0:01:54]}  Rxa2 {[%clk 0:02:20]} 23. O-O {[%clk 0:01:55]}  d4 {[%clk 0:02:13]} 24. Nc5 {[%clk 0:01:51]}  Nd5 {[%clk 0:02:09]} 25. Nd3 {[%clk 0:01:46]}  Rxa1 {[%clk 0:02:06]} 26. Rxa1 {[%clk 0:01:36]}  Rxa1+ {[%clk 0:02:04]} 27. Bxa1 {[%clk 0:01:36]}  Kf8 {[%clk 0:01:53]} 28. Kf1 {[%clk 0:01:36]}  Ke7 {[%clk 0:01:51]} 29. Ke2 {[%clk 0:01:35]}  Ke6 {[%clk 0:01:52]} 30. f4 {[%clk 0:01:35]}  Kf5 {[%clk 0:01:51]} 31. Kf3 {[%clk 0:01:34]}  h5 {[%clk 0:01:51]} 32. g3 {[%clk 0:01:27]}  g5 {[%clk 0:01:33]} 33. fxg5 {[%clk 0:01:25]}  Nxe5+ {[%clk 0:01:33]} 34. Nxe5 {[%clk 0:01:23]}  Kxe5 {[%clk 0:01:34]} 35. h4 {[%clk 0:01:17]}  Ne3 {[%clk 0:01:28]} 36. Bb2 {[%clk 0:01:11]}  b3 {[%clk 0:01:28]} 37. Bc1 {[%clk 0:01:09]}  Kf5 {[%clk 0:01:27]} 38. Bb2 {[%clk 0:01:07]}  Nc4 {[%clk 0:01:16]} 39. Bxd4 {[%clk 0:01:05]}  b2 {[%clk 0:01:17]} 40. Bxb2 {[%clk 0:01:04]}  Nxb2 {[%clk 0:01:17]} 41. Ke3 {[%clk 0:00:59]}  Nc4+ {[%clk 0:01:14]} 42. Kd4 {[%clk 0:00:59]}  Nd2 {[%clk 0:01:13]} 43. Kd5 {[%clk 0:00:58]}  Ne4 {[%clk 0:01:13]} 44. g4+ {[%clk 0:00:57]}  hxg4 {[%clk 0:01:13]} 0-1


[Site "https://www.chess.com"]

[Event "Titled Tuesday Blitz August 17 2021"]
[White "Kislov, Oleg"]
[Black "Lopez Gracia, Fernando"]
[WhiteFideId "13503774"]
[BlackFideId "2207184"]
[WhiteElo "2252"]
[BlackElo "2381"]
[Result "1/2-1/2"]
[Round "10"]
[TimeControl "180+1"]
[Date "2021.08.17"]
[WhiteClock "0:00:39"]
[BlackClock "0:00:50"]

1. e4 {[%clk 0:03:00]}  e5 {[%clk 0:02:58]} 2. Nf3 {[%clk 0:03:00]}  Nc6 {[%clk 0:02:58]} 3. d4 {[%clk 0:02:59]}  exd4 {[%clk 0:02:58]} 4. Nxd4 {[%clk 0:03:00]}  Nf6 {[%clk 0:02:59]} 5. Nc3 {[%clk 0:02:59]}  Bb4 {[%clk 0:02:58]} 6. Nxc6 {[%clk 0:03:00]}  bxc6 {[%clk 0:02:58]} 7. Bd3 {[%clk 0:03:00]}  d5 {[%clk 0:02:59]} 8. exd5 {[%clk 0:03:00]}  O-O {[%clk 0:02:59]} 9. O-O {[%clk 0:03:00]}  Bg4 {[%clk 0:03:00]} 10. f3 {[%clk 0:03:00]}  Bh5 {[%clk 0:03:01]} 11. Bg5 {[%clk 0:02:57]}  Bxc3 {[%clk 0:02:50]} 12. bxc3 {[%clk 0:02:54]}  cxd5 {[%clk 0:02:50]} 13. c4 {[%clk 0:02:45]}  c6 {[%clk 0:02:43]} 14. cxd5 {[%clk 0:02:43]}  cxd5 {[%clk 0:02:44]} 15. Rb1 {[%clk 0:02:30]}  Qd6 {[%clk 0:02:40]} 16. Qd2 {[%clk 0:02:27]}  Bg6 {[%clk 0:02:37]} 17. Rfd1 {[%clk 0:02:24]}  Rac8 {[%clk 0:02:30]} 18. Rb7 {[%clk 0:02:05]}  Bxd3 {[%clk 0:02:17]} 19. Qxd3 {[%clk 0:02:04]}  h6 {[%clk 0:02:18]} 20. Bxf6 {[%clk 0:02:03]}  Qxf6 {[%clk 0:02:19]} 21. Rxa7 {[%clk 0:01:58]}  Qb6+ {[%clk 0:02:14]} 22. Qd4 {[%clk 0:01:58]}  Qxd4+ {[%clk 0:02:15]} 23. Rxd4 {[%clk 0:01:58]}  Rxc2 {[%clk 0:02:15]} 24. Rxd5 {[%clk 0:01:44]}  Rb8 {[%clk 0:02:11]} 25. h4 {[%clk 0:01:26]}  Rbb2 {[%clk 0:02:10]} 26. Rd8+ {[%clk 0:01:23]}  Kh7 {[%clk 0:02:10]} 27. Rxf7 {[%clk 0:01:21]}  Rxg2+ {[%clk 0:02:09]} 28. Kf1 {[%clk 0:01:14]}  Rh2 {[%clk 0:02:07]} 29. Kg1 {[%clk 0:01:12]}  Rbg2+ {[%clk 0:02:07]} 30. Kf1 {[%clk 0:01:12]}  Rxa2 {[%clk 0:02:07]} 31. Kg1 {[%clk 0:01:12]}  Rag2+ {[%clk 0:01:51]} 32. Kf1 {[%clk 0:01:12]}  Rg3 {[%clk 0:01:49]} 33. Rf4 {[%clk 0:01:07]}  Rgh3 {[%clk 0:01:30]} 34. Rd7 {[%clk 0:00:52]}  Rh1+ {[%clk 0:01:12]} 35. Kf2 {[%clk 0:00:46]}  R3h2+ {[%clk 0:01:07]} 36. Kg3 {[%clk 0:00:42]}  Rh3+ {[%clk 0:01:01]} 37. Kg2 {[%clk 0:00:41]}  R1h2+ {[%clk 0:01:01]} 38. Kg1 {[%clk 0:00:38]}  Rh1+ {[%clk 0:00:48]} 39. Kg2 {[%clk 0:00:38]}  R1h2+ {[%clk 0:00:49]} 40. Kg1 {[%clk 0:00:38]}  Rh1+ {[%clk 0:00:50]} 41. Kg2 {[%clk 0:00:39]} 1/2-1/2


[Site "https://www.chess.com"]

[Event "Titled Tuesday Blitz August 17 2021"]
[White "Koellner, Ruben Gideon"]
[Black "Yaran, Siar"]
[WhiteFideId "12993093"]
[BlackFideId "6323006"]
[WhiteElo "2536"]
[BlackElo "1977"]
[Result "0-1"]
[Round "10"]
[TimeControl "180+1"]
[Date "2021.08.17"]
[WhiteClock "0:00:08"]
[BlackClock "0:00:39"]

1. d4 {[%clk 0:03:00]}  Nf6 {[%clk 0:02:58]} 2. Bg5 {[%clk 0:03:00]}  Ne4 {[%clk 0:02:58]} 3. Bf4 {[%clk 0:02:59]}  f6 {[%clk 0:02:58]} 4. f3 {[%clk 0:02:58]}  e5 {[%clk 0:02:58]} 5. dxe5 {[%clk 0:02:06]}  fxe5 {[%clk 0:02:56]} 6. Bxe5 {[%clk 0:02:07]}  Nc6 {[%clk 0:02:56]} 7. Qd5 {[%clk 0:01:24]}  Nf6 {[%clk 0:02:19]} 8. Bxf6 {[%clk 0:01:23]}  Qxf6 {[%clk 0:02:20]} 9. Nc3 {[%clk 0:01:23]}  Bb4 {[%clk 0:02:19]} 10. Qe4+ {[%clk 0:01:18]}  Kf7 {[%clk 0:01:52]} 11. O-O-O {[%clk 0:01:07]}  Bxc3 {[%clk 0:01:40]} 12. Qc4+ {[%clk 0:01:05]}  d5 {[%clk 0:01:31]} 13. Qxc3 {[%clk 0:01:00]}  d4 {[%clk 0:01:30]} 14. Qb3+ {[%clk 0:00:42]}  Be6 {[%clk 0:01:10]} 15. Qxb7 {[%clk 0:00:41]}  Qh6+ {[%clk 0:00:54]} 16. Kb1 {[%clk 0:00:36]}  Rhb8 {[%clk 0:00:45]} 17. Qxc6 {[%clk 0:00:26]}  Bxa2+ {[%clk 0:00:45]} 18. Kxa2 {[%clk 0:00:11]}  Qxc6 {[%clk 0:00:44]} 19. Rxd4 {[%clk 0:00:08]}  Qxc2 {[%clk 0:00:39]} 0-1


[Site "https://www.chess.com"]

[Event "Titled Tuesday Blitz August 17 2021"]
[White "Korchmar, Vasiliy"]
[Black "Demchenko, Anton"]
[WhiteFideId "24131750"]
[BlackFideId "4160258"]
[WhiteElo "2370"]
[BlackElo "2583"]
[Result "0-1"]
[Round "10"]
[TimeControl "180+1"]
[Date "2021.08.17"]
[WhiteClock "0:00:01"]
[BlackClock "0:00:05"]

1. e4 {[%clk 0:03:00]}  e5 {[%clk 0:02:59]} 2. Nf3 {[%clk 0:03:01]}  Nc6 {[%clk 0:02:59]} 3. Nc3 {[%clk 0:03:01]}  Nf6 {[%clk 0:02:58]} 4. Bb5 {[%clk 0:03:02]}  Nd4 {[%clk 0:02:52]} 5. Bc4 {[%clk 0:03:00]}  c6 {[%clk 0:02:41]} 6. Nxe5 {[%clk 0:02:37]}  d5 {[%clk 0:02:37]} 7. exd5 {[%clk 0:02:35]}  Bd6 {[%clk 0:02:37]} 8. f4 {[%clk 0:02:01]}  O-O {[%clk 0:02:30]} 9. O-O {[%clk 0:01:59]}  cxd5 {[%clk 0:02:28]} 10. Be2 {[%clk 0:01:52]}  Re8 {[%clk 0:01:55]} 11. d3 {[%clk 0:01:51]}  Nc6 {[%clk 0:01:55]} 12. d4 {[%clk 0:01:17]}  Bb4 {[%clk 0:01:54]} 13. Be3 {[%clk 0:01:11]}  Qa5 {[%clk 0:01:39]} 14. Nb1 {[%clk 0:00:43]}  Ne4 {[%clk 0:01:06]} 15. c3 {[%clk 0:00:41]}  Bf8 {[%clk 0:01:03]} 16. Nd2 {[%clk 0:00:41]}  Nd6 {[%clk 0:01:00]} 17. Bd3 {[%clk 0:00:38]}  Bf5 {[%clk 0:00:56]} 18. Nxc6 {[%clk 0:00:21]}  bxc6 {[%clk 0:00:56]} 19. Bxf5 {[%clk 0:00:21]}  Nxf5 {[%clk 0:00:45]} 20. Bf2 {[%clk 0:00:22]}  Qc7 {[%clk 0:00:43]} 21. Qg4 {[%clk 0:00:14]}  g6 {[%clk 0:00:42]} 22. Rae1 {[%clk 0:00:10]}  a5 {[%clk 0:00:42]} 23. Nf3 {[%clk 0:00:08]}  a4 {[%clk 0:00:41]} 24. Ne5 {[%clk 0:00:06]}  Rab8 {[%clk 0:00:39]} 25. Re2 {[%clk 0:00:05]}  Bg7 {[%clk 0:00:30]} 26. Nd3 {[%clk 0:00:05]}  Rxe2 {[%clk 0:00:28]} 27. Qxe2 {[%clk 0:00:06]}  Nd6 {[%clk 0:00:29]} 28. Nc5 {[%clk 0:00:03]}  Qa7 {[%clk 0:00:26]} 29. Re1 {[%clk 0:00:02]}  Bf6 {[%clk 0:00:23]} 30. b3 {[%clk 0:00:02]}  axb3 {[%clk 0:00:19]} 31. axb3 {[%clk 0:00:03]}  Nb5 {[%clk 0:00:18]} 32. Qd2 {[%clk 0:00:02]}  Be7 {[%clk 0:00:15]} 33. h3 {[%clk 0:00:03]}  Bd6 {[%clk 0:00:15]} 34. c4 {[%clk 0:00:02]}  Nc7 {[%clk 0:00:15]} 35. f5 {[%clk 0:00:03]}  Ne8 {[%clk 0:00:11]} 36. fxg6 {[%clk 0:00:03]}  hxg6 {[%clk 0:00:11]} 37. cxd5 {[%clk 0:00:03]}  cxd5 {[%clk 0:00:12]} 38. Qg5 {[%clk 0:00:03]}  Bf8 {[%clk 0:00:04]} 39. Qxd5 {[%clk 0:00:02]}  Nf6 {[%clk 0:00:04]} 40. Qc4 {[%clk 0:00:03]}  Rd8 {[%clk 0:00:03]} 41. Bh4 {[%clk 0:00:03]}  Bg7 {[%clk 0:00:03]} 42. Rf1 {[%clk 0:00:03]}  Rd6 {[%clk 0:00:02]} 43. Bg3 {[%clk 0:00:02]}  Rd8 {[%clk 0:00:02]} 44. Be5 {[%clk 0:00:03]}  Nd5 {[%clk 0:00:01]} 45. Bxg7 {[%clk 0:00:04]}  Kxg7 {[%clk 0:00:02]} 46. Ne4 {[%clk 0:00:04]}  Qe7 {[%clk 0:00:02]} 47. Qd3 {[%clk 0:00:03]}  Nb4 {[%clk 0:00:01]} 48. Qf3 {[%clk 0:00:03]}  Nc2 {[%clk 0:00:01]} 49. Ng5 {[%clk 0:00:02]}  Nxd4 {[%clk 0:00:01]} 50. Qxf7+ {[%clk 0:00:02]}  Qxf7 {[%clk 0:00:02]} 51. Rxf7+ {[%clk 0:00:03]}  Kh6 {[%clk 0:00:03]} 52. h4 {[%clk 0:00:03]}  Kh5 {[%clk 0:00:03]} 53. g3 {[%clk 0:00:02]}  Kg4 {[%clk 0:00:04]} 54. Kg2 {[%clk 0:00:01]}  Nf5 {[%clk 0:00:04]} 55. Nf3 {[%clk 0:00:01]}  Ne3+ {[%clk 0:00:04]} 56. Kf2 {[%clk 0:00:01]}  Nd1+ {[%clk 0:00:05]} 0-1


[Site "https://www.chess.com"]